fUSD/lending_fUSD_20251230
["ID","MTS","AMOUNT","RATE_DAILY","PERIOD"]
[400113409,1767131457155,-172.02491,0.00041688,30]
[400113410,1767131457166,-494.0,0.00041694,30]
[400113411,1767131457178,-153.0,0.000418,120]
[400113412,1767131457190,-230.80263405,0.000418,120]
[400113413,1767131457202,-638.2064344,0.000418,120]
[400113414,1767131457214,-831.0,0.00041884,11]
[400113415,1767131457227,-172.02491,0.00041888,30]
[400113416,1767131457240,-152.0,0.000419,120]
[400113417,1767131457252,-200.0,0.00041918,10]
[400113418,1767131457264,-200.0,0.00041932,120]
[400113419,1767131457275,-2000.0,0.00042,15]
[400113420,1767131457287,-1000.0,0.00042,7]
[400113421,1767131457300,-382.54214,0.00042,2]
[400113422,1767131457312,-222.0,0.00042,2]
[400113423,1767131457324,-222.0,0.00042,2]
[400113424,1767131457335,-222.63834331,0.00042,2]
[400113425,1767131457347,-719.5,0.00042,30]
[400113426,1767131457361,-1244.12720298,0.00042,2]
[400113427,1767131457371,-157.097086,0.00042,120]
[400113428,1767131457388,-185.14306652,0.00042,120]
[400113429,1767131457400,-935.21219712,0.00042,120]
[400113430,1767131457412,-158.88,0.000421,14]
[400113431,1767131457425,-494.0,0.00042124,30]
[400113432,1767131457436,-999.0,0.00042191,120]
[400113433,1767131457448,-350.0,0.00042196,10]
[400113434,1767131457461,-153.0,0.000423,120]
[400113435,1767131457474,-50000.0,0.000425,43]
[400113436,1767131457487,-406.76901743,0.000425,120]
[400113437,1767131457502,-831.0,0.00042531,16]
[400113438,1767131457512,-152.0,0.000426,120]
[400113439,1767131457523,-2359.42702743,0.0004267,120]
[400113440,1767131457534,-726.00479899,0.000427,120]
[400113441,1767131457546,-250.0,0.0004274,10]
[400113442,1767131457558,-450.0,0.00042744,10]
[400113443,1767131457570,-354.98881333,0.000428,120]
[400113444,1767131457582,-150.0,0.00042839,2]
[400113445,1767131457594,-172.44696873,0.0004286,9]
[400113446,1767131457607,-7993.07388207,0.00042865,2]
[400113447,1767131457624,-291.4936895,0.00042865,2]
[400113448,1767131457640,-400.0,0.0004287,3]
[400113449,1767131457653,-400.0,0.0004287,3]
[400113450,1767131457666,-300.0,0.0004287,3]
[400113451,1767131457679,-300.0,0.0004287,3]
[400113452,1767131457692,-153.0,0.000429,120]
[400113453,1767131457705,-206.0,0.0004295,30]
[400113454,1767131457718,-3143.70162446,0.00042959,2]
[400113455,1767131457734,-155.85,0.0004296,60]
[400113456,1767131457747,-50000.0,0.00042964,40]
[400113457,1767131457758,-50000.0,0.00042964,41]
[400113458,1767131457769,-50000.0,0.00042964,42]
[400113459,1767131457779,-50000.0,0.00042964,43]
[400113460,1767131457790,-14214659.29287621,0.00042965,7]
[400113461,1767131457800,-9504717.99981976,0.00042965,7]
[400113462,1767131457811,-5066420.22761878,0.00042965,7]
[400113463,1767131457821,-259.67169703,0.00042965,7]
[400113464,1767131457831,-1135728.9120059,0.00042965,7]
[400113465,1767131457842,-2160627.77110379,0.00042965,7]
[400113466,1767131457854,-2032.53090284,0.00042965,5]
[400113467,1767131457864,-247.72168215,0.00042965,2]
[400113468,1767131457874,-497.08031415,0.00042965,3]
[400113469,1767131457885,-1169.23002515,0.00042965,2]
[400113470,1767131457898,-132880.93807903,0.00042965,2]
[400113471,1767131457910,-1244434.00748444,0.00042965,7]
[400113472,1767131457922,-1000.00000029,0.00042965,2]
[400113473,1767131457934,-2000.0,0.00042965,2]
[400113474,1767131457946,-1000.0,0.00042965,2]
[400113475,1767131457958,-1000.0,0.00042965,2]
[400113476,1767131457971,-5000.0,0.00042965,2]
[400113477,1767131457981,-5000.0,0.00042965,2]
[400113478,1767131457991,-5000.0,0.00042965,2]
[400113479,1767131458002,-984.35572597,0.00042965,2]
[400113480,1767131458013,-1096.89933511,0.00042965,7]
[400113481,1767131458023,-672.88803987,0.00042965,2]
[400113482,1767131458034,-4721.87282227,0.00042965,2]
[400113483,1767131458046,-47766.14298586,0.00042965,2]
[400113484,1767131458057,-6935.54728099,0.00042965,4]
[400113485,1767131458067,-5314.97150927,0.00042965,4]
[400113486,1767131458078,-40643534.21533802,0.00042965,7]
[400113487,1767131458094,-124182.51862893,0.00042965,2]
[400113488,1767131458106,-220070.10478111,0.00042965,2]
[400113489,1767131458118,-13054.71788549,0.00042965,2]
[400113490,1767131458130,-10887.68686316,0.00042965,2]
[400113491,1767131458140,-20966804.01715079,0.00042965,7]
[400113492,1767131458331,-2589.34,0.00042965,7]
[400113493,1767131458346,-340.86111214,0.00042965,7]
[400113494,1767131458359,-2731.44,0.00042965,7]
[400113495,1767131458373,-861.55200496,0.00042965,7]
[400113496,1767131458386,-532.22284415,0.00042965,7]
[400113497,1767131458400,-528210.18240759,0.00042965,7]
[400113498,1767131458412,-1580669.38546858,0.00042965,7]
[400113499,1767131458425,-419330.61453142,0.00042965,7]
[400113500,1767131458437,-748.63230573,0.00042965,7]
[400113501,1767131458450,-1080.80086853,0.00042965,7]
[400113502,1767131458463,-304.30313845,0.00042965,7]
[400113503,1767131458477,-2160.70713976,0.00042965,7]
[400113504,1767131458569,-151.0,0.00038356,120]
[400113505,1767131458579,-152.159655,0.00038356,120]
[400113506,1767131458589,-55.67493541,0.00042965,7]
[400113507,1767131458602,-27025.23845197,0.00042965,7]
[400113508,1767131458615,-33903.07320963,0.00042965,7]
[400113509,1767131458627,-356.15,0.00042965,7]
[400113510,1767131458640,-684.39999965,0.00042965,7]
[400113511,1767131458653,-490.520002,0.00042965,7]
[400113512,1767131458666,-341.32290013,0.00042965,7]
[400113513,1767131458682,-485317.15070415,0.00042965,7]
[400113514,1767131458699,-384679.00164786,0.00042965,7]
[400113515,1767131458712,-8034.96227502,0.00042965,7]
[400113516,1767131458724,-521.11876182,0.00042965,7]
[400113517,1767131458737,-2814.50681363,0.00042965,7]
[400113518,1767131458749,-5065.50956673,0.00042965,7]
[400113519,1767131458762,-6403.69871666,0.00042965,7]
[400113520,1767131458775,-515768.80029599,0.00042965,7]
[400113521,1767131474516,-198.16501142,0.00014388,2]
[400113522,1767131477398,-253.15861808,0.00014388,2]
[400113523,1767131479947,-177.91265073,0.00014388,2]
[400113548,1767132103902,-319.81776671,0.00014316,2]
[400113555,1767132314273,-149.90543098,0.00014316,2]
[400113556,1767132314296,-172.47088229,0.00014334,2]
[400113557,1767132316851,-127.52911771,0.00014334,2]
[400113558,1767132316874,-50.09456902,0.00014352,2]
[400113559,1767132318895,-180.18223329,0.00014352,2]
[400113561,1767132436142,416.93,7.324e-05,2]
[400113562,1767132436355,416.93,7.71e-05,2]
[400113563,1767132436593,416.93,8.095e-05,2]
[400113564,1767132436820,416.93,8.481e-05,2]
[400113565,1767132437213,416.93,8.866e-05,2]
[400113566,1767132437410,416.93,9.252e-05,2]
[400113567,1767132437963,416.93,9.637e-05,2]
[400113568,1767132438121,416.93,0.00010023,2]
[400113569,1767132438166,416.93,0.00010408,2]
[400113570,1767132438237,416.93,0.00010794,2]
[400113571,1767132438467,416.93,0.00011179,2]
[400113572,1767132438653,416.93,0.00011565,2]
[400113573,1767132438889,218.19481895,0.0001195,2]
[400113574,1767132438918,198.73518105,0.0001195,2]
[400113575,1767132439089,416.93,0.00012336,2]
[400113576,1767132439275,416.93,0.00012721,2]
[400113577,1767132439502,416.93,0.00013107,2]
[400113578,1767132439702,416.93,0.00013492,2]
[400113579,1767132448917,-164.77834246,0.00013878,2]
[400113580,1767132450986,-168.32198253,0.00013878,2]
[400113581,1767132452835,-83.82967501,0.00013878,2]
[400113582,1767132452860,-324.07736936,0.00014263,2]
[400113584,1767132479559,-166.66,0.00013941,2]
[400113585,1767132479585,-83.34,0.00014235,2]
[400113616,1767132579003,168.39,0.00011472,2]
[400113617,1767132614008,-83.32,0.00014235,2]
[400113618,1767132614032,-95.34278105,0.00014235,2]
[400113620,1767132615533,-172.65721895,0.00014235,2]
[400113621,1767132615559,-49.97831095,0.00014263,2]
[400113624,1767132631648,-42.87431969,0.00014263,2]
[400113625,1767132631661,-300.0,0.00014352,2]
[400113626,1767132631680,-250.0,0.00014352,2]
[400113627,1767132631696,-121.98463256,0.00014352,2]
[400113628,1767132631710,-73.01536744,0.00014352,2]
[400113629,1767132631720,-165.17,0.00014386,2]
[400113630,1767132631731,-31.88914574,0.00014388,2]
[400113631,1767132631740,-300.0,0.00014473,2]
[400113632,1767132631750,-382.93554917,0.00014473,2]
[400113633,1767132631760,-42.87702709,0.00014528,2]
[400113634,1767132631776,-123.78297291,0.00014528,2]
[400113635,1767132631787,-1200.0,0.0001459,2]
[400113636,1767132631797,-1200.0,0.00014591,2]
[400113637,1767132631807,-300.0,0.00014591,2]
[400113638,1767132631817,-228.0,0.00014591,2]
[400113639,1767132631827,-300.0,0.00014591,2]
[400113640,1767132631837,-300.0,0.00014591,2]
[400113641,1767132631847,-300.0,0.00014592,2]
[400113642,1767132631857,-300.0,0.00014592,2]
[400113643,1767132631867,-195.0,0.00014592,2]
[400113644,1767132631878,-416.93,0.00014649,2]
[400113646,1767132631888,-150.0,0.00014719,2]
[400113648,1767132631898,-1000.0,0.00014719,2]
[400113649,1767132631907,-19301.92145858,0.0001472,2]
[400113650,1767132631919,-931.037,0.0001472,2]
[400113651,1767132631936,-49889.08154142,0.0001472,2]
[400113652,1767132631945,-200.0,0.00014818,2]
[400113653,1767132631955,-166.66,0.00014822,2]
[400113654,1767132631965,-161.49,0.00014874,2]
[400113655,1767132631975,-166.66,0.00015115,2]
[400113656,1767132631984,-2935.42,0.00015204,2]
[400113657,1767132631993,-326.325,0.00015204,2]
[400113658,1767132632003,-10839.53224725,0.00015205,2]
[400113659,1767132632014,-17194.59355811,0.00015205,2]
[400113663,1767132632039,-68472.13258916,0.00015205,2]
[400113666,1767132632049,-212.73729775,0.00015376,2]
[400113669,1767132632059,-500.0,0.00015376,2]
[400113672,1767132632068,-500.0,0.00015376,2]
[400113675,1767132632080,-500.0,0.00015376,2]
[400113678,1767132632090,-500.0,0.00015376,2]
[400113681,1767132632100,-383.82485452,0.00015376,2]
[400113683,1767132632109,-500.0,0.00015376,2]
[400113685,1767132632120,-500.0,0.00015376,2]
[400113686,1767132632134,-481.44815055,0.00015376,2]
[400113687,1767132632144,-500.0,0.00015376,2]
[400113688,1767132632154,-500.0,0.00015376,2]
[400113689,1767132632163,-500.0,0.00015376,2]
[400113690,1767132632173,-500.0,0.00015376,2]
[400113691,1767132632183,-500.0,0.00015376,2]
[400113692,1767132632193,-500.0,0.00015376,2]
[400113693,1767132632202,-500.0,0.00015376,2]
[400113694,1767132632212,-500.0,0.00015376,2]
[400113695,1767132632222,-500.0,0.00015376,2]
[400113696,1767132632231,-500.0,0.00015376,2]
[400113697,1767132632242,-500.0,0.00015376,2]
[400113698,1767132632252,-500.0,0.00015376,2]
[400113699,1767132632262,-500.0,0.00015376,2]
[400113700,1767132632272,-500.0,0.00015376,2]
[400113701,1767132632282,-500.0,0.00015376,2]
[400113702,1767132632291,-500.0,0.00015376,2]
[400113703,1767132632302,-500.0,0.00015376,2]
[400113704,1767132632311,-500.0,0.00015376,2]
[400113705,1767132632321,-500.0,0.00015376,2]
[400113706,1767132632331,-500.0,0.00015376,2]
[400113707,1767132632341,-500.0,0.00015376,2]
[400113708,1767132632351,-500.0,0.00015376,2]
[400113709,1767132632360,-500.0,0.00015376,2]
[400113710,1767132632370,-500.0,0.00015376,2]
[400113711,1767132632380,-500.0,0.00015376,2]
[400113712,1767132632390,-500.0,0.00015376,2]
[400113713,1767132632400,-500.0,0.00015376,2]
[400113714,1767132632410,-500.0,0.00015376,2]
[400113715,1767132632420,-500.0,0.00015376,2]
[400113716,1767132632430,-500.0,0.00015376,2]
[400113717,1767132632440,-500.0,0.00015376,2]
[400113718,1767132632449,-500.0,0.00015376,2]
[400113719,1767132632459,-500.0,0.00015376,2]
[400113720,1767132632469,-500.0,0.00015376,2]
[400113721,1767132632479,-500.0,0.00015376,2]
[400113722,1767132632493,-500.0,0.00015376,2]
[400113723,1767132632507,-639.86073661,0.00015376,2]
[400113724,1767132632524,-639.86073661,0.00015376,2]
[400113725,1767132632536,-639.86073661,0.00015376,2]
[400113726,1767132632547,-639.86073661,0.00015376,2]
[400113727,1767132632557,-639.86073661,0.00015376,2]
[400113728,1767132632567,-639.86073661,0.00015376,2]
[400113729,1767132632577,-639.86073661,0.00015376,2]
[400113730,1767132632587,-639.86073661,0.00015376,2]
[400113731,1767132632597,-639.86073661,0.00015376,2]
[400113732,1767132632607,-639.86073661,0.00015376,2]
[400113733,1767132632617,-639.86073661,0.00015376,2]
[400113734,1767132632627,-639.86073661,0.00015376,2]
[400113735,1767132632637,-639.86073661,0.00015376,2]
[400113736,1767132632647,-639.86073661,0.00015376,2]
[400113737,1767132632656,-639.86073661,0.00015376,2]
[400113738,1767132632666,-639.86073661,0.00015376,2]
[400113739,1767132632676,-639.86073661,0.00015376,2]
[400113740,1767132632686,-639.86073661,0.00015376,2]
[400113741,1767132632696,-639.86073661,0.00015376,2]
[400113742,1767132632706,-639.86073661,0.00015376,2]
[400113743,1767132632715,-639.86073661,0.00015376,2]
[400113744,1767132632726,-639.86073661,0.00015376,2]
[400113745,1767132632736,-639.86073661,0.00015376,2]
[400113746,1767132632746,-639.86073661,0.00015376,2]
[400113747,1767132632756,-639.86073661,0.00015376,2]
[400113748,1767132632765,-639.86073661,0.00015376,2]
[400113749,1767132632775,-639.86073661,0.00015376,2]
[400113750,1767132632785,-639.86073661,0.00015376,2]
[400113751,1767132632795,-639.86073661,0.00015376,2]
[400113752,1767132632805,-639.86073661,0.00015376,2]
[400113753,1767132632814,-639.86073661,0.00015376,2]
[400113754,1767132632824,-639.86073661,0.00015376,2]
[400113755,1767132632834,-639.86073661,0.00015376,2]
[400113756,1767132632844,-639.86073661,0.00015376,2]
[400113757,1767132632854,-639.99182938,0.00015376,2]
[400113758,1767132632868,-639.99182938,0.00015376,2]
[400113759,1767132632878,-639.99182938,0.00015376,2]
[400113760,1767132632888,-639.99182938,0.00015376,2]
[400113761,1767132632898,-639.99182938,0.00015376,2]
[400113762,1767132632907,-639.99182938,0.00015376,2]
[400113763,1767132632917,-639.99182938,0.00015376,2]
[400113764,1767132632927,-639.99182938,0.00015376,2]
[400113765,1767132632937,-639.99182938,0.00015376,2]
[400113766,1767132632947,-639.99182938,0.00015376,2]
[400113767,1767132632957,-1428.02723113,0.00015376,2]
[400113768,1767132632966,-1428.02723113,0.00015376,2]
[400113769,1767132632976,-1428.02723113,0.00015376,2]
[400113770,1767132632986,-1428.02723113,0.00015376,2]
[400113771,1767132632996,-1428.02723113,0.00015376,2]
[400113772,1767132633006,-1428.02723113,0.00015376,2]
[400113773,1767132633016,-1428.02723113,0.00015376,2]
[400113774,1767132633025,-500.0,0.00015377,2]
[400113775,1767132633035,-12318.52870699,0.00015378,2]
[400113776,1767132633045,-166.66,0.00015409,2]
[400113777,1767132633059,-1640.25,0.00015478,2]
[400113778,1767132633069,-10041.00271995,0.0001548,2]
[400113779,1767132633079,-1000.0,0.00015599,2]
[400113780,1767132633089,-165.5373,0.00015599,2]
[400113781,1767132633099,-13780.34936582,0.000156,2]
[400113782,1767132633109,-171.20235036,0.000156,2]
[400113783,1767132633119,-970.09034212,0.000156,2]
[400113784,1767132633128,-185.37020136,0.000156,2]
[400113785,1767132633138,-500.0,0.00015651,2]
[400113786,1767132633148,-151.0,0.00015655,2]
[400113787,1767132633158,-151.0,0.00015689,2]
[400113788,1767132633168,-151.0,0.00015689,2]
[400113789,1767132633178,-153.43746121,0.00015689,2]
[400113790,1767132633188,-273.77153773,0.00015698,2]
[400113791,1767132633197,-500.0,0.00015698,2]
[400113792,1767132633207,-500.0,0.00015698,2]
[400113793,1767132633217,-500.0,0.00015698,2]
[400113794,1767132633227,-500.0,0.00015698,2]
[400113795,1767132633237,-500.0,0.00015698,2]
[400113796,1767132633250,-500.0,0.00015698,2]
[400113797,1767132633260,-500.0,0.00015698,2]
[400113798,1767132633270,-500.0,0.00015698,2]
[400113799,1767132633280,-500.0,0.00015698,2]
[400113800,1767132633290,-500.0,0.00015698,2]
[400113801,1767132633300,-500.0,0.00015698,2]
[400113802,1767132633311,-500.0,0.00015698,2]
[400113803,1767132633321,-500.0,0.00015698,2]
[400113804,1767132633331,-500.0,0.00015698,2]
[400113805,1767132633341,-500.0,0.00015698,2]
[400113806,1767132633351,-502.50439874,0.00015698,2]
[400113807,1767132633361,-500.0,0.00015698,2]
[400113808,1767132633371,-500.0,0.00015698,2]
[400113809,1767132633382,-523.47649377,0.00015698,2]
[400113810,1767132633392,-500.0,0.00015698,2]
[400113811,1767132633402,-500.0,0.00015698,2]
[400113812,1767132633412,-500.0,0.00015698,2]
[400113813,1767132633422,-621.72362606,0.00015698,2]
[400113814,1767132633432,-535.35055637,0.00015698,2]
[400113815,1767132633442,-500.0,0.00015698,2]
[400113816,1767132633453,-500.0,0.00015698,2]
[400113817,1767132633463,-500.0,0.00015698,2]
[400113818,1767132633473,-538.54538168,0.00015698,2]
[400113819,1767132633483,-500.0,0.00015698,2]
[400113820,1767132633493,-500.0,0.00015698,2]
[400113821,1767132633507,-500.0,0.00015698,2]
[400113822,1767132633517,-500.0,0.00015698,2]
[400113823,1767132633527,-500.0,0.00015698,2]
[400113824,1767132633537,-500.0,0.00015698,2]
[400113825,1767132633547,-500.0,0.00015698,2]
[400113826,1767132633558,-500.0,0.00015698,2]
[400113827,1767132633568,-455.06899995,0.00015698,2]
[400113828,1767132633578,-32689.3218,0.000157,2]
[400113829,1767132633588,-300.0,0.00015748,2]
[400113830,1767132633598,-250.0,0.00015748,2]
[400113831,1767132633607,-195.0,0.00015748,2]
[400113832,1767132633617,-198.31759794,0.00015748,2]
[400113833,1767132633626,-2647.72567104,0.00015748,2]
[400113834,1767132633636,-193.0,0.00015748,2]
[400113835,1767132633646,-300.0,0.00015748,2]
[400113836,1767132633656,-1640.25,0.00015752,2]
[400113837,1767132633666,-195.0,0.00015787,2]
[400113838,1767132633677,-255.0,0.00015838,2]
[400113839,1767132633688,-9520.15383153,0.000159,2]
[400113840,1767132633698,-500.0,0.00015925,2]
[400113841,1767132633708,-1200.0,0.00015976,2]
[400113842,1767132633718,-420.0,0.00015976,2]
[400113843,1767132633728,-420.0,0.00015976,2]
[400113844,1767132633738,-420.0,0.00015976,2]
[400113845,1767132633748,-1640.25,0.00016026,2]
[400113846,1767132633758,-1680.0,0.00016049,2]
[400113847,1767132633768,-500.0,0.00016197,2]
[400113848,1767132633778,-500.0,0.00016197,2]
[400113849,1767132633788,-500.0,0.00016197,2]
[400113850,1767132633798,-500.0,0.00016199,2]
[400113851,1767132633808,-1640.25,0.000163,2]
[400113852,1767132633819,-185.37020135,0.00016338,2]
[400113853,1767132633829,-500.0,0.00016438,2]
[400113854,1767132633840,-500.0,0.00016438,2]
[400113855,1767132633850,-500.0,0.00016438,2]
[400113856,1767132633860,-500.0,0.00016438,2]
[400113857,1767132633870,-500.0,0.00016438,2]
[400113858,1767132633880,-500.0,0.00016438,2]
[400113859,1767132633890,-500.0,0.00016438,2]
[400113860,1767132633900,-500.0,0.00016438,2]
[400113861,1767132633909,-500.0,0.00016438,2]
[400113862,1767132633920,-500.0,0.00016438,2]
[400113863,1767132633930,-500.0,0.00016438,2]
[400113864,1767132633939,-549.45731542,0.00016438,2]
[400113865,1767132633950,-500.0,0.00016438,2]
[400113866,1767132633959,-500.0,0.00016438,2]
[400113867,1767132633969,-500.0,0.00016438,2]
[400113868,1767132633979,-500.0,0.00016438,2]
[400113869,1767132633990,-500.0,0.00016438,2]
[400113870,1767132634001,-500.0,0.00016438,2]
[400113871,1767132634011,-500.0,0.00016438,2]
[400113872,1767132634022,-500.0,0.00016438,2]
[400113873,1767132634032,-500.0,0.00016438,2]
[400113874,1767132634042,-500.0,0.00016438,2]
[400113875,1767132634053,-500.0,0.00016438,2]
[400113876,1767132634064,-500.0,0.00016438,2]
[400113877,1767132634074,-500.0,0.00016438,2]
[400113878,1767132634085,-500.0,0.00016438,2]
[400113879,1767132634095,-500.0,0.00016438,2]
[400113880,1767132634106,-500.0,0.00016438,2]
[400113881,1767132634117,-500.0,0.00016438,2]
[400113882,1767132634127,-500.0,0.00016438,2]
[400113883,1767132634137,-500.0,0.00016438,2]
[400113884,1767132634147,-500.0,0.00016438,2]
[400113885,1767132634158,-500.0,0.00016438,2]
[400113886,1767132634168,-500.0,0.00016438,2]
[400113887,1767132634178,-500.0,0.00016438,2]
[400113888,1767132634189,-500.0,0.00016438,2]
[400113889,1767132634199,-500.0,0.00016438,2]
[400113890,1767132634208,-500.0,0.00016438,2]
[400113891,1767132634219,-500.0,0.00016438,2]
[400113892,1767132634229,-500.0,0.00016438,2]
[400113893,1767132634239,-500.0,0.00016438,2]
[400113894,1767132634248,-500.0,0.00016438,2]
[400113895,1767132634258,-500.0,0.00016438,2]
[400113896,1767132634268,-500.0,0.00016438,2]
[400113897,1767132634278,-500.0,0.00016438,2]
[400113898,1767132634288,-500.0,0.00016438,2]
[400113899,1767132634297,-500.0,0.00016438,2]
[400113900,1767132634307,-500.0,0.00016438,2]
[400113901,1767132634318,-500.0,0.00016438,2]
[400113902,1767132634328,-500.0,0.00016438,2]
[400113903,1767132634338,-500.0,0.00016438,2]
[400113904,1767132634348,-500.0,0.00016438,2]
[400113905,1767132634359,-500.0,0.00016438,2]
[400113906,1767132634368,-500.0,0.00016438,2]
[400113907,1767132634378,-500.0,0.00016438,2]
[400113908,1767132634388,-500.0,0.00016438,2]
[400113909,1767132634398,-500.0,0.00016438,2]
[400113910,1767132634408,-500.0,0.00016438,2]
[400113911,1767132634419,-500.0,0.00016438,2]
[400113912,1767132634430,-500.0,0.00016438,2]
[400113913,1767132634440,-500.0,0.00016438,2]
[400113914,1767132634449,-500.0,0.00016438,2]
[400113915,1767132634459,-500.0,0.00016438,2]
[400113916,1767132634469,-500.0,0.00016438,2]
[400113917,1767132634479,-500.0,0.00016438,2]
[400113918,1767132634489,-500.0,0.00016438,2]
[400113919,1767132634501,-500.0,0.00016438,2]
[400113920,1767132634511,-500.0,0.00016438,2]
[400113921,1767132634521,-500.0,0.00016438,2]
[400113922,1767132634531,-500.0,0.00016438,2]
[400113923,1767132634542,-500.0,0.00016438,2]
[400113924,1767132634553,-500.0,0.00016438,2]
[400113925,1767132634563,-3212.65,0.00016438,2]
[400113926,1767132634573,-500.0,0.00016473,2]
[400113927,1767132634584,-3075.59891702,0.00016494,2]
[400113928,1767132634594,-1640.25,0.00016574,2]
[400113929,1767132634605,-150.0,0.00016699,2]
[400113930,1767132634615,-150.0,0.00016699,2]
[400113931,1767132634624,-500.0,0.00016699,2]
[400113932,1767132634634,-159.00171244,0.00016699,2]
[400113933,1767132634644,-500.0,0.00016699,2]
[400113934,1767132634655,-150.0,0.00016699,2]
[400113935,1767132634665,-150.0,0.00016699,2]
[400113936,1767132634675,-150.0,0.00016699,2]
[400113937,1767132634685,-500.0,0.00016699,2]
[400113938,1767132634695,-245.4934071,0.00016699,2]
[400113939,1767132634705,-150.0,0.00016699,2]
[400113940,1767132634715,-500.0,0.00016699,2]
[400113941,1767132634725,-500.0,0.00016699,2]
[400113942,1767132634735,-150.0,0.00016699,2]
[400113943,1767132634746,-500.0,0.00016699,2]
[400113944,1767132634756,-150.0,0.00016699,2]
[400113945,1767132634766,-200.0,0.00016699,2]
[400113946,1767132634776,-200.0,0.00016699,2]
[400113947,1767132634785,-150.0,0.00016699,2]
[400113948,1767132634795,-500.0,0.00016747,2]
[400113949,1767132634805,-150.0,0.00016754,2]
[400113950,1767132634815,-150.0,0.00016754,2]
[400113951,1767132634826,-500.0,0.00016754,2]
[400113952,1767132634836,-500.0,0.00016754,2]
[400113953,1767132634846,-152.86476692,0.00016754,2]
[400113954,1767132634856,-207.10234457,0.00016754,2]
[400113955,1767132634866,-177.88806909,0.00016754,2]
[400113956,1767132634876,-510.81342354,0.00016754,2]
[400113957,1767132634887,-237.83643607,0.00016754,2]
[400113958,1767132634897,-500.0,0.00016754,2]
[400113959,1767132634906,-515.48135853,0.00016754,2]
[400113960,1767132634918,-150.0,0.00016754,2]
[400113961,1767132634928,-500.0,0.00016754,2]
[400113962,1767132634938,-150.0,0.00016754,2]
[400113963,1767132634948,-151.80656531,0.00016754,2]
[400113964,1767132634958,-223.32130998,0.00016809,2]
[400113965,1767132634968,-500.0,0.00016809,2]
[400113966,1767132634978,-350.0,0.00016809,2]
[400113967,1767132634988,-500.0,0.00016809,2]
[400113968,1767132634998,-150.0,0.00016809,2]
[400113969,1767132635008,-175.38136853,0.00016809,2]
[400113970,1767132635018,-200.0,0.00016809,2]
[400113971,1767132635028,-1384.35362515,0.00016819,2]
[400113972,1767132635038,-1640.25,0.00016848,2]
[400113973,1767132635048,-500.0,0.00016863,2]
[400113974,1767132635058,-150.0,0.00016863,2]
[400113975,1767132635067,-594.96387073,0.00016863,2]
[400113976,1767132635077,-500.0,0.00016873,2]
[400113977,1767132635087,-169.51073264,0.00016873,2]
[400113978,1767132635096,-500.51324187,0.00016873,2]
[400113979,1767132635106,-500.0,0.00016873,2]
[400113980,1767132635115,-174.97243501,0.00016873,2]
[400113981,1767132635125,-472.53758265,0.00016873,2]
[400113982,1767132635135,-500.0,0.00016873,2]
[400113983,1767132635145,-500.0,0.00016873,2]
[400113984,1767132635155,-500.0,0.00016873,2]
[400113985,1767132635164,-165.07212519,0.00016873,2]
[400113986,1767132635174,-224.35124646,0.00016873,2]
[400113987,1767132635184,-500.0,0.00016873,2]
[400113988,1767132635195,-500.0,0.00016873,2]
[400113989,1767132635204,-500.43220814,0.00016873,2]
[400113990,1767132635214,-157.17549662,0.00016873,2]
[400113991,1767132635223,-500.0,0.00016873,2]
[400113992,1767132635233,-500.0,0.00016873,2]